fUST/lending_fUST_20241203
["ID","MTS","AMOUNT","RATE_DAILY","PERIOD"]
[343978410,1733167838109,-198.27147,0.00026921,2]
[343978412,1733167838119,-9647.67801256,0.00027,2]
[343978414,1733167838128,-1304.03048079,0.00027285,2]
[343978416,1733167838139,-649.73552819,0.00027397,7]
[343978418,1733167838149,-500.0,0.00027397,7]
[343978420,1733167838159,-368.98356466,0.00027397,7]
[343978422,1733167838169,-560.88268581,0.00027397,7]
[343978424,1733167838178,-167.25417362,0.00027397,7]
[343978426,1733167838188,-500.0,0.00027397,7]
[343978428,1733167838197,-500.0,0.00027397,7]
[343978430,1733167838207,-500.0,0.00027397,7]
[343978432,1733167838217,-506.61,0.00027397,7]
[343978434,1733167838226,-500.0,0.00027397,7]
[343978436,1733167838235,-250.34422983,0.00027397,7]
[343978438,1733167838244,-713.69,0.00027397,7]
[343978440,1733167838253,-500.0,0.00027397,7]
[343978442,1733167838263,-507.64,0.00027397,7]
[343978453,1733167838361,-500.0,0.00027397,7]
[343978456,1733167838377,-500.0,0.00027397,7]
[343978457,1733167838388,-503.74640126,0.00027397,7]
[343978458,1733167838398,-500.0,0.00027397,7]
[343978459,1733167838408,-500.0,0.00027397,7]
[343978460,1733167838418,-500.0,0.00027397,7]
[343978461,1733167838427,-512.11702096,0.00027397,7]
[343978462,1733167838437,-293.71316394,0.00027578,2]
[343978463,1733167838446,-500.0,0.00027671,7]
[343978464,1733167838456,-500.0,0.00027671,7]
[343978465,1733167838465,-500.0,0.00027671,7]
[343978466,1733167838474,-1169.27083333,0.00027671,7]
[343978467,1733167838484,-713.69,0.00027671,7]
[343978469,1733167838494,-500.0,0.00027671,7]
[343978471,1733167838504,-500.0,0.00027671,7]
[343978472,1733167838513,-500.0,0.00027945,7]
[343978473,1733167838523,-500.14566746,0.00027945,7]
[343978475,1733167838532,-500.0,0.00027945,7]
[343978477,1733167838542,-713.69,0.00027945,7]
[343978479,1733167838551,-500.0,0.00027945,7]
[343978481,1733167838560,-1304.03048079,0.00028083,2]
[343978483,1733167838569,-500.0,0.00028218,7]
[343978485,1733167838578,-346.79130758,0.00028218,7]
[343978487,1733167838587,-571.77,0.00028218,7]
[343978489,1733167838596,-603.62712899,0.00028218,7]
[343978490,1733167838606,-500.0,0.00028218,7]
[343978491,1733167838615,-500.0,0.00028218,7]
[343978492,1733167838625,-500.0,0.00028219,7]
[343978493,1733167838636,-500.0,0.00028219,7]
[343978494,1733167838645,-1169.27083333,0.00028219,7]
[343978495,1733167838654,-713.69,0.00028219,7]
[343978496,1733167838663,-300.31,0.00028219,7]
[343978497,1733167838673,-587.0,0.00028401,2]
[343978498,1733167838683,-500.0,0.00028492,7]
[343978499,1733167838693,-571.77,0.00028492,7]
[343978500,1733167838703,-524.40545518,0.00028492,7]
[343978501,1733167838713,-505.96533414,0.00028493,7]
[343978502,1733167838723,-500.0,0.00028493,7]
[343978503,1733167838732,-713.69,0.00028493,7]
[343978504,1733167838742,-293.71316394,0.00028545,2]
[343978505,1733167838752,-571.77,0.00028766,7]
[343978506,1733167838762,-500.0,0.00028767,7]
[343978507,1733167838771,-713.69,0.00028767,7]
[343978508,1733167838781,-1304.03048079,0.00028881,2]
[343978509,1733167838790,-153.66,0.000289,31]
[343978510,1733167838800,-571.77,0.0002904,7]
[343978511,1733167838811,-500.0,0.00029041,7]
[343978512,1733167838821,-713.69,0.00029041,7]
[343978513,1733167838831,-571.77,0.00029314,7]
[343978514,1733167838841,-500.0,0.00029315,7]
[343978515,1733167838850,-713.69,0.00029315,7]
[343978516,1733167838860,-293.71316394,0.00029511,2]
[343978517,1733167838870,-1169.27083333,0.00029588,7]
[343978518,1733167838880,-571.77,0.00029588,7]
[343978519,1733167838895,-500.0,0.00029589,7]
[343978520,1733167838905,-713.69,0.00029589,7]
[343978521,1733167838915,-1304.03048079,0.0002968,2]
[343978522,1733167838925,-9806.02819729,0.00029703,2]
[343978523,1733167838935,-571.77,0.00029862,7]
[343978524,1733167838945,-500.0,0.00029863,7]
[343978525,1733167838954,-713.69,0.00029863,7]
[343978526,1733167838964,-153.66,0.000299,31]
[343978527,1733167838975,-153.66,0.000299,31]
[343978528,1733167838992,-9806.02819729,0.00029921,2]
[343978529,1733167839001,-151.0,0.0003,120]
[343978530,1733167839012,-151.0,0.0003,120]
[343978531,1733167839022,-157.092,0.0003,2]
[343978532,1733167839033,-164.0,0.0003,120]
[343978533,1733167839043,-800.48228658,0.0003,2]
[343978534,1733167839054,-201.0,0.0003,2]
[343978535,1733167839068,-12487.12432266,0.0003,2]
[343978536,1733167839079,-1500.0,0.0003,2]
[343978537,1733167839090,-1881.96658484,0.0003,10]
[343978538,1733167839100,-1024.54898977,0.0003,7]
[343978539,1733167839110,-412.73792482,0.0003,10]
[343978540,1733167839120,-167.91287049,0.0003,2]
[343978541,1733167839129,-8000.0,0.0003,3]
[343978542,1733167839142,-162.0,0.0003,2]
[343978543,1733167839152,-175.03089185,0.00030136,7]
[343978544,1733167839162,-713.69,0.00030136,7]
[343978545,1733167839171,-571.77,0.00030136,7]
[343978546,1733167839181,-197.042322,0.00030137,120]
[343978547,1733167839191,-515.395,0.00030228,30]
[343978548,1733167839201,-9806.0281973,0.00030278,2]
[343978549,1733167839210,-17568.50000001,0.000303,10]
[343978550,1733167839220,-980.49,0.000304,2]
[343978551,1733167839230,-713.69,0.0003041,7]
[343978552,1733167839239,-571.77,0.0003041,7]
[343978553,1733167839249,-1221.0809417,0.00030425,2]
[343978554,1733167839259,-293.71316394,0.00030478,2]
[343978555,1733167839268,-1304.03048079,0.00030478,2]
[343978556,1733167839278,-666.0,0.00030486,2]
[343978557,1733167839288,-6666.0,0.00030486,2]
[343978558,1733167839297,-1000.0,0.000305,10]
[343978559,1733167839308,-1001.4747685,0.000305,30]
[343978560,1733167839318,-151.0,0.0003057,7]
[343978561,1733167839329,-151.0,0.0003057,7]
[343978562,1733167839339,-153.884172,0.0003057,7]
[343978563,1733167839350,-151.0,0.0003057,7]
[343978564,1733167839360,-151.0,0.0003057,7]
[343978565,1733167839371,-151.0,0.0003057,7]
[343978566,1733167839380,-151.0,0.0003057,7]
[343978567,1733167839395,-371.099312,0.0003057,7]
[343978568,1733167839405,-371.099312,0.0003057,7]
[343978569,1733167839415,-371.099312,0.0003057,7]
[343978570,1733167839425,-371.099312,0.0003057,7]
[343978571,1733167839434,-371.099312,0.0003057,7]
[343978572,1733167839444,-371.099312,0.0003057,7]
[343978573,1733167839454,-371.099312,0.0003057,7]
[343978574,1733167839464,-371.099312,0.0003057,7]
[343978575,1733167839473,-371.099312,0.0003057,7]
[343978576,1733167839483,-371.099312,0.0003057,7]
[343978577,1733167839493,-371.099312,0.0003057,7]
[343978578,1733167839503,-371.099312,0.0003057,7]
[343978579,1733167839513,-371.099312,0.0003057,7]
[343978580,1733167839522,-371.099312,0.0003057,7]
[343978581,1733167839531,-151.0,0.0003057,7]
[343978582,1733167839541,-151.0,0.0003057,7]
[343978583,1733167839551,-151.0,0.0003057,7]
[343978584,1733167839561,-151.0,0.0003057,7]
[343978585,1733167839571,-151.0,0.0003057,7]
[343978587,1733167839580,-151.0,0.0003057,7]
[343978589,1733167839590,-170.124265,0.0003057,7]
[343978591,1733167839600,-271.055748,0.0003057,7]
[343978592,1733167839609,-271.055748,0.0003057,7]
[343978593,1733167839617,-271.055748,0.0003057,7]
[343978594,1733167839627,-271.055748,0.0003057,7]
[343978595,1733167839640,-271.055748,0.0003057,7]
[343978596,1733167839649,-271.055748,0.0003057,7]
[343978597,1733167839659,-271.055748,0.0003057,7]
[343978598,1733167839668,-271.055748,0.0003057,7]
[343978599,1733167839678,-271.055748,0.0003057,7]
[343978600,1733167839687,-271.055748,0.0003057,7]
[343978601,1733167839698,-271.055748,0.0003057,7]
[343978602,1733167839707,-271.055748,0.0003057,7]
[343978603,1733167839717,-271.055748,0.0003057,7]
[343978604,1733167839727,-271.055748,0.0003057,7]
[343978605,1733167839736,-152.707552,0.00030571,7]
[343978606,1733167839745,-235.332972,0.00030571,7]
[343978607,1733167839755,-235.332972,0.00030571,7]
[343978608,1733167839766,-235.332972,0.00030571,7]
[343978609,1733167839776,-235.332972,0.00030571,7]
[343978611,1733167839786,-235.332972,0.00030571,7]
[343978612,1733167839797,-235.332972,0.00030571,7]
[343978613,1733167839806,-235.332972,0.00030571,7]
[343978614,1733167839816,-235.332972,0.00030571,7]
[343978615,1733167839825,-235.332972,0.00030571,7]
[343978616,1733167839835,-235.332972,0.00030571,7]
[343978617,1733167839844,-235.332972,0.00030571,7]
[343978618,1733167839854,-235.332972,0.00030571,7]
[343978619,1733167839863,-235.332972,0.00030571,7]
[343978620,1733167839873,-235.332972,0.00030571,7]
[343978621,1733167839882,-151.0,0.00030571,7]
[343978622,1733167839897,-151.0,0.00030571,7]
[343978623,1733167839906,-151.0,0.00030571,7]
[343978624,1733167839919,-151.0,0.00030571,7]
[343978626,1733167839929,-151.0,0.00030571,7]
[343978628,1733167839938,-151.0,0.00030571,7]
[343978629,1733167839947,-151.0,0.00030571,7]
[343978631,1733167839957,-233.54716,0.00030571,7]
[343978632,1733167839966,-500.0,0.00030573,5]
[343978633,1733167839976,-77294.86664585,0.00030578,2]
[343978634,1733167839988,-222.73805917,0.00030578,2]
[343978635,1733167839998,-443.22773281,0.00030578,7]
[343978636,1733167840008,-443.22773281,0.00030578,7]
[343978637,1733167840018,-3584812.30993622,0.00030578,10]
[343978638,1733167840029,-13225.7853258,0.00030578,2]
[343978639,1733167840039,-4444082.23660068,0.00030578,10]
[343978671,1733167843546,-25.71548119,0.00030578,10]
[343978672,1733167843562,-396.84735994,0.00030578,10]
[343978673,1733167843734,-61473.08722024,0.00030578,10]
[343978674,1733167843747,-95292.37560187,0.00030578,10]
[343978675,1733167843787,-471.024986,0.00030228,30]
[343978676,1733167843796,-34284.24134896,0.00030578,10]
[343978677,1733167843808,-33905.51991239,0.00030578,10]
[343978688,1733167845875,-1632.5,0.00030568,10]
[343978689,1733167845885,-2111.19857012,0.00030578,10]
[343978690,1733167845901,-1187.73131829,0.00030578,10]
[343978691,1733167845913,-27454.48090469,0.00030578,10]
[343979090,1733168259020,189.650379,0.00013973,2]
[343979183,1733168324941,784.03129844,0.0002,2]
[343979186,1733168438790,150.0,0.00026,60]
[343979199,1733168918222,180.16786,0.00013973,2]
[343979237,1733169034523,-385.23953489,0.0002,2]
[343979239,1733169034533,-492.31351511,0.0002,2]
[343979240,1733169034546,-441.16836,0.0002,2]
[343979241,1733169034558,-235.78895822,0.0002,2]
[343979242,1733169034567,-180.16786,0.00020447,2]
[343979243,1733169034577,-275.694615,0.00022466,2]
[343979244,1733169034587,-613.0,0.00023299,2]
[343979245,1733169034596,-1721.84194419,0.000233,2]
[343979259,1733169037998,-668.40000024,0.000233,2]
[343979261,1733169038010,-2058.25245624,0.000233,2]
[343979264,1733169038096,-500.00228775,0.000233,2]
[343979265,1733169038108,-19951.50331158,0.000233,2]
[343979266,1733169038118,-300.0,0.00023487,2]
[343979267,1733169038127,-300.0,0.00023487,2]
[343979268,1733169038137,-8951.6514041,0.00023488,2]
[343979269,1733169038146,-672.7601482,0.00023589,2]
[343979270,1733169038155,-250.0,0.00023782,2]
[343979271,1733169038165,-195.928801,0.00023872,2]
[343979272,1733169038174,-1412.9413471,0.00023895,2]
[343979273,1733169038184,-178.0132036,0.00025232,2]
[343979274,1733169038193,-152.0,0.00025387,2]
[343979275,1733169038202,-420.0,0.00025484,2]
[343979276,1733169038212,-638.13568409,0.00025484,2]
[343979277,1733169038221,-261.57985352,0.0002554,2]
[343979278,1733169038231,-195.928801,0.00025638,2]
[343979279,1733169038241,-420.0,0.00025836,2]
[343979280,1733169038250,-192.0,0.00025958,2]
[343979281,1733169038259,-160.32899268,0.00026817,2]
[343979282,1733169038268,-180.16786,0.00026921,2]
[343979283,1733169038277,-198.7073,0.00026943,30]
[343979284,1733169038286,-500.0,0.00027373,2]
[343979285,1733169038295,-260.31507083,0.00027373,2]
[343979286,1733169038304,-503.4663938,0.00027373,2]
[343979287,1733169038314,-1672.02,0.00027387,10]
[343979288,1733169038323,-2863.11,0.00027387,10]
[343979289,1733169038332,-500.0,0.00027396,2]
[343979290,1733169038341,-500.0,0.00027396,2]
[343979291,1733169038350,-500.0,0.00027396,2]
[343979292,1733169038359,-500.0,0.00027396,2]
[343979293,1733169038368,-500.0,0.00027396,2]
[343979294,1733169038377,-500.0,0.00027396,2]
[343979295,1733169038386,-500.0,0.00027396,2]
[343979296,1733169038395,-500.0,0.00027396,2]
[343979297,1733169038408,-500.0,0.00027396,2]
[343979298,1733169038417,-500.0,0.00027396,2]
[343979299,1733169038427,-500.0,0.00027396,2]
[343979300,1733169038438,-500.0,0.00027396,2]
[343979301,1733169038448,-500.0,0.00027396,2]
[343979302,1733169038457,-500.0,0.00027396,2]
[343979303,1733169038466,-500.0,0.00027396,2]
[343979304,1733169038475,-500.0,0.00027396,2]
[343979305,1733169038485,-500.0,0.00027396,2]
[343979306,1733169038494,-500.0,0.00027396,2]
[343979307,1733169038504,-500.0,0.00027396,2]
[343979308,1733169038513,-500.0,0.00027396,2]
[343979309,1733169038522,-500.0,0.00027396,2]
[343979310,1733169038531,-500.0,0.00027396,2]
[343979311,1733169038541,-500.0,0.00027396,2]
[343979312,1733169038551,-500.0,0.00027396,2]
[343979313,1733169038561,-172.1017226,0.00027396,2]
[343979314,1733169038571,-500.0,0.00027396,2]
[343979315,1733169038580,-500.0,0.00027396,2]
[343979316,1733169038590,-500.0,0.00027396,2]
[343979317,1733169038599,-500.0,0.00027396,2]
[343979318,1733169038609,-500.0,0.00027396,2]
[343979319,1733169038619,-500.0,0.00027396,2]
[343979320,1733169038629,-269.95083843,0.00027396,2]
[343979321,1733169038638,-500.0,0.00027396,2]
[343979322,1733169038647,-500.0,0.00027396,2]
[343979323,1733169038656,-500.0,0.00027396,2]
[343979324,1733169038665,-500.0,0.00027396,2]
[343979325,1733169038675,-500.0,0.00027396,2]
[343979326,1733169038685,-500.0,0.00027396,2]
[343979327,1733169038695,-500.0,0.00027396,2]
[343979328,1733169038704,-500.0,0.00027396,2]
[343979329,1733169038714,-500.0,0.00027396,2]
[343979330,1733169038723,-500.0,0.00027396,2]
[343979331,1733169038733,-500.0,0.00027396,2]
[343979332,1733169038742,-517.77611289,0.00027396,2]
[343979333,1733169038752,-406.80268328,0.00027396,2]
[343979334,1733169038761,-500.0,0.00027396,2]
[343979335,1733169038771,-500.0,0.00027396,2]
[343979336,1733169038780,-500.0,0.00027396,2]
[343979337,1733169038789,-500.0,0.00027396,2]
[343979338,1733169038799,-500.0,0.00027396,2]
[343979339,1733169038808,-500.0,0.00027396,2]
[343979340,1733169038817,-500.0,0.00027396,2]
[343979341,1733169038827,-500.0,0.00027396,2]
[343979342,1733169038836,-500.0,0.00027396,2]
[343979343,1733169038845,-500.0,0.00027396,2]
[343979344,1733169038855,-500.0,0.00027396,2]
[343979345,1733169038864,-500.0,0.00027396,2]
[343979346,1733169038873,-500.0,0.00027396,2]
[343979347,1733169038883,-500.0,0.00027396,2]
[343979348,1733169038892,-500.0,0.00027396,2]
[343979349,1733169038902,-500.0,0.00027396,2]
[343979350,1733169038911,-500.0,0.00027396,2]
[343979351,1733169038921,-500.0,0.00027396,2]
[343979352,1733169038935,-500.0,0.00027396,2]
[343979353,1733169038946,-500.0,0.00027396,2]
[343979354,1733169038956,-500.0,0.00027396,2]
[343979355,1733169038967,-500.0,0.00027396,2]
[343979356,1733169038977,-500.0,0.00027396,2]
[343979357,1733169038987,-500.0,0.00027396,2]
[343979358,1733169038998,-206.16677018,0.00027396,2]
[343979359,1733169039008,-500.0,0.00027396,2]
[343979360,1733169039018,-500.0,0.00027396,2]
[343979361,1733169039028,-500.0,0.00027396,2]
[343979362,1733169039038,-200.0,0.00027396,2]
[343979363,1733169039051,-406.73,0.00027397,7]
[343979364,1733169039060,-500.0,0.00027397,7]
[343979365,1733169039070,-500.0,0.00027397,7]
[343979366,1733169039080,-500.0,0.00027397,7]
[343979367,1733169039089,-500.0,0.00027397,7]
[343979368,1733169039099,-1169.27083333,0.00027397,7]
[343979369,1733169039109,-500.0,0.00027397,7]
[343979370,1733169039118,-500.0,0.00027397,7]
[343979371,1733169039129,-500.0,0.00027397,7]
[343979372,1733169039139,-567.64027475,0.00027397,7]
[343979373,1733169039148,-309.76867354,0.00027397,7]
[343979374,1733169039158,-500.0,0.00027397,7]
[343979375,1733169039167,-500.0,0.00027397,7]
[343979376,1733169039177,-500.0,0.00027397,7]
[343979377,1733169039188,-500.0,0.00027397,7]
[343979378,1733169039198,-500.0,0.00027397,7]
[343979379,1733169039208,-500.0,0.00027397,7]
[343979380,1733169039217,-500.0,0.00027397,7]
[343979381,1733169039227,-500.0,0.00027397,7]
[343979382,1733169039236,-500.0,0.00027397,7]
[343979383,1733169039246,-500.0,0.00027397,7]
[343979384,1733169039255,-500.0,0.00027397,7]
[343979385,1733169039265,-502.960423,0.00027397,7]
[343979386,1733169039275,-500.0,0.00027397,7]
[343979387,1733169039285,-514.43232767,0.00027397,7]
[343979388,1733169039294,-500.0,0.00027397,7]
[343979389,1733169039304,-500.0,0.00027397,7]
[343979390,1733169039314,-419.35835949,0.00027397,7]
[343979391,1733169039323,-500.0,0.00027397,7]
[343979392,1733169039333,-500.0,0.00027397,7]
[343979393,1733169039342,-500.0,0.00027397,7]
[343979394,1733169039352,-500.0,0.00027397,7]
[343979395,1733169039361,-1345.92,0.00027397,7]
[343979396,1733169039371,-500.0,0.00027397,7]
[343979397,1733169039380,-500.0,0.00027397,7]
[343979398,1733169039390,-500.0,0.00027397,7]
[343979399,1733169039400,-500.0,0.00027397,7]
[343979400,1733169039412,-157.59,0.00027397,7]
[343979401,1733169039422,-500.0,0.00027397,7]
[343979402,1733169039431,-500.0,0.00027397,7]
[343979403,1733169039443,-500.0,0.00027397,7]
[343979404,1733169039453,-500.0,0.00027397,7]
[343979405,1733169039463,-500.0,0.00027397,7]
[343979406,1733169039473,-500.0,0.00027397,7]
[343979407,1733169039487,-500.0,0.00027397,7]
[343979408,1733169039496,-500.0,0.00027397,7]
[343979409,1733169039506,-501.16458101,0.00027397,7]
[343979410,1733169039515,-500.0,0.00027397,7]
[343979411,1733169039525,-500.0,0.00027397,7]
[343979412,1733169039534,-500.0,0.00027397,7]
[343979413,1733169039544,-500.0,0.00027397,7]
[343979414,1733169039554,-500.0,0.00027397,7]
[343979415,1733169039563,-500.0,0.00027397,7]
[343979416,1733169039573,-500.0,0.00027397,7]
[343979418,1733169039583,-500.0,0.00027397,7]
[343979420,1733169039592,-500.0,0.00027397,7]
[343979421,1733169039601,-500.0,0.00027397,7]
[343979423,1733169039610,-500.0,0.00027397,7]
[343979424,1733169039620,-500.0,0.00027397,7]
[343979425,1733169039629,-500.0,0.00027397,7]
[343979426,1733169039639,-583.57050332,0.00027397,7]
[343979427,1733169039648,-500.0,0.00027397,7]
[343979428,1733169039658,-503.34560249,0.00027397,7]
[343979429,1733169039667,-500.0,0.00027397,7]
[343979430,1733169039677,-500.0,0.00027397,7]
[343979431,1733169039688,-500.0,0.00027397,7]
[343979432,1733169039698,-500.0,0.00027397,7]
[343979433,1733169039707,-500.0,0.00027397,7]
[343979434,1733169039716,-500.0,0.00027397,7]
[343979435,1733169039726,-500.0,0.00027397,7]
[343979436,1733169039735,-500.0,0.00027397,7]
[343979437,1733169039744,-500.0,0.00027397,7]
[343979438,1733169039754,-500.0,0.00027397,7]
[343979439,1733169039763,-500.0,0.00027397,7]
[343979440,1733169039772,-500.0,0.00027397,7]
[343979441,1733169039782,-468.36529264,0.00027397,7]
[343979442,1733169039791,-500.0,0.00027397,7]
[343979443,1733169039800,-4994.78,0.00027397,7]
[343979444,1733169039809,-500.0,0.00027397,7]
[343979445,1733169039819,-500.0,0.00027397,7]
[343979446,1733169039828,-206.07243793,0.00027397,7]
[343979447,1733169039838,-635.48,0.00027397,7]
[343979448,1733169039847,-500.0,0.00027397,7]
[343979449,1733169039856,-500.0,0.00027397,7]
[343979450,1733169039866,-500.0,0.00027397,7]
[343979451,1733169039875,-500.0,0.00027397,7]
[343979452,1733169039884,-714.81,0.00027397,7]
[343979453,1733169039894,-500.0,0.00027397,7]
[343979454,1733169039903,-500.0,0.00027397,7]
[343979455,1733169039913,-210.21,0.00027397,7]
[343979456,1733169039922,-500.0,0.00027397,7]
[343979457,1733169039932,-500.0,0.00027397,7]
[343979458,1733169039942,-500.0,0.00027397,7]
[343979459,1733169039951,-500.0,0.00027397,7]
[343979460,1733169039960,-507.98551668,0.00027397,7]
[343979461,1733169040040,-167.25417362,0.00027397,7]
[343979462,1733169040050,-537.12476998,0.00027397,7]
[343979463,1733169040060,-500.0,0.00027397,7]
[343979464,1733169040069,-500.0,0.00027397,7]
[343979465,1733169040079,-500.0,0.00027397,7]
[343979467,1733169040089,-500.0,0.00027397,7]
[343979469,1733169040098,-500.0,0.00027397,7]
[343979471,1733169040107,-500.0,0.00027397,7]
[343979472,1733169040116,-500.0,0.00027397,7]
[343979474,1733169040126,-500.0,0.00027397,7]
[343979476,1733169040135,-500.0,0.00027397,7]
[343979478,1733169040145,-368.98356466,0.00027397,7]
[343979480,1733169040154,-500.0,0.00027397,7]
[343979481,1733169040163,-500.0,0.00027397,7]
[343979482,1733169040173,-500.0,0.00027397,7]
[343979483,1733169040184,-516.07,0.00027397,7]
[343979484,1733169040193,-500.0,0.00027397,7]
[343979485,1733169040202,-500.0,0.00027397,7]
[343979486,1733169040212,-500.0,0.00027397,7]
[343979487,1733169040221,-500.0,0.00027397,7]
[343979488,1733169040231,-195.928801,0.00027405,2]
[343979489,1733169040240,-7485.08083346,0.0002747,2]
[343979490,1733169040249,-500.30240615,0.00027473,5]
[343979491,1733169040259,-200.36868126,0.00027473,2]
[343979493,1733169040268,-345.10144811,0.00027473,5]
[343979495,1733169040277,-500.0,0.00027473,5]
[343979497,1733169040286,-374.69376712,0.00027473,2]
[343979499,1733169040296,-513.63592441,0.00027473,5]
[343979501,1733169040305,-501.6241701,0.00027473,5]
[343979502,1733169040314,-291.56183589,0.00027473,5]
[343979504,1733169040323,-169.971693,0.00027478,2]
[343979505,1733169040333,-170.892,0.00027478,16]
[343979506,1733169040343,-784.63234294,0.00027481,2]
[343979507,1733169040352,-500.0,0.00027499,2]
[343979508,1733169040362,-228.32524898,0.00027499,2]
[343979509,1733169040371,-202.86194378,0.00027499,2]
[343979510,1733169040380,-345.77251213,0.00027499,2]
[343979511,1733169040390,-2513955.5,0.000275,5]
[343979512,1733169040400,-587.0,0.00027651,2]
[343979513,1733169040412,-500.0,0.0002767,7]
[343979514,1733169040422,-151.72969487,0.0002767,7]
[343979515,1733169040431,-168.0,0.0002767,7]
[343979516,1733169040445,-500.0,0.0002767,7]
[343979517,1733169040458,-500.0,0.0002767,7]
[343979518,1733169040467,-500.0,0.0002767,7]
[343979520,1733169040477,-500.0,0.0002767,7]
[343979522,1733169040486,-500.0,0.0002767,7]
[343979524,1733169040496,-500.0,0.0002767,7]
[343979526,1733169040505,-500.0,0.0002767,7]
[343979528,1733169040514,-500.0,0.0002767,7]
[343979530,1733169040523,-500.0,0.0002767,7]
[343979531,1733169040533,-500.0,0.0002767,7]
[343979532,1733169040542,-500.0,0.0002767,7]
[343979533,1733169040552,-500.0,0.0002767,7]
[343979534,1733169040561,-500.0,0.0002767,7]
[343979535,1733169040571,-480.32127983,0.0002767,7]
[343979536,1733169040581,-500.0,0.0002767,7]
[343979537,1733169040590,-500.0,0.0002767,7]
[343979538,1733169040600,-500.0,0.0002767,7]
[343979539,1733169040610,-507.89898494,0.0002767,7]
[343979540,1733169040620,-500.0,0.0002767,7]
[343979541,1733169040629,-500.0,0.0002767,7]
[343979542,1733169040640,-500.0,0.0002767,7]
[343979543,1733169040649,-500.0,0.0002767,7]
[343979544,1733169040658,-500.0,0.0002767,7]
[343979545,1733169040668,-626.87121364,0.0002767,7]
[343979546,1733169040677,-502.4159854,0.0002767,7]
[343979547,1733169040691,-500.0,0.0002767,7]
[343979548,1733169040701,-500.0,0.0002767,7]
[343979549,1733169040711,-500.0,0.0002767,7]
[343979550,1733169040723,-500.0,0.0002767,7]
[343979551,1733169040732,-500.0,0.0002767,7]
[343979552,1733169040744,-500.0,0.0002767,7]
[343979553,1733169040754,-500.0,0.0002767,7]
[343979554,1733169040763,-500.0,0.0002767,7]
[343979555,1733169040773,-500.0,0.0002767,7]
[343979556,1733169040783,-500.0,0.0002767,7]
[343979557,1733169040792,-500.0,0.0002767,7]
[343979558,1733169040802,-263.56,0.00027671,7]
[343979559,1733169040812,-500.0,0.00027671,7]
[343979560,1733169040821,-1169.27083333,0.00027671,7]
[343979561,1733169040831,-500.0,0.00027671,7]
[343979562,1733169040840,-500.0,0.00027671,7]
[343979563,1733169040850,-500.0,0.00027671,7]
[343979564,1733169040859,-500.0,0.00027671,7]
[343979565,1733169040868,-500.0,0.00027671,7]
[343979566,1733169040878,-500.0,0.00027671,7]
[343979567,1733169040887,-500.0,0.00027671,7]
[343979568,1733169040896,-500.0,0.00027671,7]
[343979569,1733169040906,-500.0,0.00027671,7]
[343979570,1733169040915,-454.5589316,0.00027671,7]
[343979571,1733169040924,-500.0,0.00027671,7]
[343979572,1733169040935,-500.0,0.00027671,7]
[343979573,1733169040945,-500.0,0.00027671,7]
[343979574,1733169040954,-500.0,0.00027671,7]
[343979575,1733169040964,-557.48,0.00027671,7]